[Event "Titled Tuesday Blitz February 28 Early 2023"]
[White "Sarana, Alexey"]
[Black "Khamdamova, Afruza"]
[WhiteFideId "24133795"]
[BlackFideId "14210444"]
[WhiteElo "2717"]
[BlackElo "2210"]
[Result "1-0"]
[Round "01"]
[TimeControl "180+2"]
[Date "2023.02.28"]
[WhiteClock "0:01:48"]
[BlackClock "0:01:18"]

1. c4 {[%clk 0:02:58]}  c5 {[%clk 0:02:12]} 2. Nf3 {[%clk 0:02:56]}  Nf6 {[%clk 0:02:12]} 3. Nc3 {[%clk 0:02:54]}  Nc6 {[%clk 0:02:12]} 4. g3 {[%clk 0:02:54]}  e6 {[%clk 0:02:12]} 5. Bg2 {[%clk 0:02:54]}  Be7 {[%clk 0:02:12]} 6. d4 {[%clk 0:02:53]}  cxd4 {[%clk 0:02:12]} 7. Nxd4 {[%clk 0:02:54]}  O-O {[%clk 0:02:11]} 8. O-O {[%clk 0:02:54]}  a6 {[%clk 0:02:10]} 9. Bf4 {[%clk 0:02:50]}  d6 {[%clk 0:02:08]} 10. Bxc6 {[%clk 0:02:24]}  bxc6 {[%clk 0:02:08]} 11. Nxc6 {[%clk 0:02:24]}  Qc7 {[%clk 0:02:00]} 12. Nxe7+ {[%clk 0:02:23]}  Qxe7 {[%clk 0:02:00]} 13. Bxd6 {[%clk 0:02:24]}  Qb7 {[%clk 0:01:54]} 14. Bxf8 {[%clk 0:02:24]}  Kxf8 {[%clk 0:01:54]} 15. Qd6+ {[%clk 0:02:22]}  Ke8 {[%clk 0:01:49]} 16. Rfd1 {[%clk 0:02:22]}  Bd7 {[%clk 0:01:48]} 17. b3 {[%clk 0:02:18]}  Rc8 {[%clk 0:01:46]} 18. Rd3 {[%clk 0:02:15]}  Bc6 {[%clk 0:01:42]} 19. Rad1 {[%clk 0:02:14]}  h5 {[%clk 0:01:37]} 20. Qe5 {[%clk 0:02:07]}  h4 {[%clk 0:01:33]} 21. gxh4 {[%clk 0:02:05]}  Bh1 {[%clk 0:01:30]} 22. f3 {[%clk 0:02:04]}  Ng4 {[%clk 0:01:28]} 23. Qxg7 {[%clk 0:02:01]}  Qb6+ {[%clk 0:01:26]} 24. Rd4 {[%clk 0:01:53]}  Ne3 {[%clk 0:01:23]} 25. Qg8+ {[%clk 0:01:50]}  Ke7 {[%clk 0:01:22]} 26. Rd7+ {[%clk 0:01:47]}  Kf6 {[%clk 0:01:19]} 27. Rxf7+ {[%clk 0:01:47]}  Ke5 {[%clk 0:01:18]} 28. Qg7# {[%clk 0:01:48]} 1-0


[Site "https://www.chess.com"]

[Event "Titled Tuesday Blitz February 28 Early 2023"]
[White "Kalajzic, Ivan"]
[Black "Adhiban, B."]
[WhiteFideId "14506378"]
[BlackFideId "5018471"]
[WhiteElo "2203"]
[BlackElo "2587"]
[Result "0-1"]
[Round "01"]
[TimeControl "180+2"]
[Date "2023.02.28"]
[WhiteClock "0:00:02"]
[BlackClock "0:01:15"]

1. b3 {[%clk 0:02:49]}  e5 {[%clk 0:02:54]} 2. Bb2 {[%clk 0:02:49]}  Nc6 {[%clk 0:02:54]} 3. e3 {[%clk 0:02:49]}  d5 {[%clk 0:02:54]} 4. Bb5 {[%clk 0:02:49]}  Ne7 {[%clk 0:02:54]} 5. Bxe5 {[%clk 0:02:43]}  a6 {[%clk 0:02:54]} 6. Bxc6+ {[%clk 0:02:42]}  Nxc6 {[%clk 0:02:55]} 7. Bg3 {[%clk 0:02:41]}  h5 {[%clk 0:02:55]} 8. h4 {[%clk 0:02:39]}  d4 {[%clk 0:02:55]} 9. Nf3 {[%clk 0:02:36]}  Bd6 {[%clk 0:02:50]} 10. Bxd6 {[%clk 0:02:31]}  Qxd6 {[%clk 0:02:51]} 11. Nxd4 {[%clk 0:02:16]}  Nxd4 {[%clk 0:02:48]} 12. exd4 {[%clk 0:02:17]}  Bg4 {[%clk 0:02:44]} 13. f3 {[%clk 0:02:05]}  O-O-O {[%clk 0:02:34]} 14. Nc3 {[%clk 0:01:32]}  Rde8+ {[%clk 0:02:20]} 15. Kf1 {[%clk 0:01:28]}  Qxd4 {[%clk 0:02:09]} 16. fxg4 {[%clk 0:01:19]}  hxg4 {[%clk 0:02:07]} 17. Ne2 {[%clk 0:00:58]}  Qf6+ {[%clk 0:02:04]} 18. Kg1 {[%clk 0:00:55]}  Rxe2 {[%clk 0:02:03]} 19. Qxe2 {[%clk 0:00:53]}  Qxa1+ {[%clk 0:02:03]} 20. Qf1 {[%clk 0:00:53]}  Qxa2 {[%clk 0:01:51]} 21. Qxf7 {[%clk 0:00:46]}  Qxc2 {[%clk 0:01:48]} 22. Qe6+ {[%clk 0:00:41]}  Kb8 {[%clk 0:01:47]} 23. Qxg4 {[%clk 0:00:41]}  Qxd2 {[%clk 0:01:45]} 24. Rh3 {[%clk 0:00:34]}  Qe1+ {[%clk 0:01:35]} 25. Kh2 {[%clk 0:00:32]}  Qe5+ {[%clk 0:01:35]} 26. Qg3 {[%clk 0:00:31]}  Qxg3+ {[%clk 0:01:35]} 27. Kxg3 {[%clk 0:00:29]}  b5 {[%clk 0:01:34]} 28. Kg4 {[%clk 0:00:30]}  Kb7 {[%clk 0:01:33]} 29. Kg5 {[%clk 0:00:30]}  Rh6 {[%clk 0:01:33]} 30. g4 {[%clk 0:00:28]}  a5 {[%clk 0:01:31]} 31. Rf3 {[%clk 0:00:26]}  a4 {[%clk 0:01:27]} 32. bxa4 {[%clk 0:00:25]}  bxa4 {[%clk 0:01:28]} 33. Ra3 {[%clk 0:00:19]}  Ra6 {[%clk 0:01:28]} 34. h5 {[%clk 0:00:20]}  Kc8 {[%clk 0:01:28]} 35. Kf5 {[%clk 0:00:20]}  Kd7 {[%clk 0:01:28]} 36. g5 {[%clk 0:00:20]}  Ke7 {[%clk 0:01:27]} 37. g6 {[%clk 0:00:20]}  c5 {[%clk 0:01:25]} 38. Kg5 {[%clk 0:00:14]}  c4 {[%clk 0:01:23]} 39. h6 {[%clk 0:00:14]}  Ra5+ {[%clk 0:01:24]} 40. Kf4 {[%clk 0:00:12]}  gxh6 {[%clk 0:01:24]} 41. Ke4 {[%clk 0:00:07]}  Kf6 {[%clk 0:01:20]} 42. Kd4 {[%clk 0:00:08]}  Kxg6 {[%clk 0:01:20]} 43. Kxc4 {[%clk 0:00:08]}  Kh7 {[%clk 0:01:18]} 44. Kb4 {[%clk 0:00:08]}  Ra8 {[%clk 0:01:18]} 45. Rg3 {[%clk 0:00:04]}  a3 {[%clk 0:01:14]} 46. Rg1 {[%clk 0:00:04]}  a2 {[%clk 0:01:14]} 47. Ra1 {[%clk 0:00:03]}  h5 {[%clk 0:01:15]} 48. Kb3 {[%clk 0:00:04]}  Kh6 {[%clk 0:01:15]} 49. Kb2 {[%clk 0:00:04]}  h4 {[%clk 0:01:15]} 50. Kb3 {[%clk 0:00:03]}  Kh5 {[%clk 0:01:15]} 51. Kb2 {[%clk 0:00:02]}  h3 {[%clk 0:01:15]} 52. Rh1 {[%clk 0:00:02]}  a1=Q+ {[%clk 0:01:15]} 0-1


[Site "https://www.chess.com"]

[Event "Titled Tuesday Blitz February 28 Early 2023"]
[White "Ezat, Mohamed"]
[Black "Sadhwani, Raunak"]
[WhiteFideId "10600906"]
[BlackFideId "35093487"]
[WhiteElo "2388"]
[BlackElo "2631"]
[Result "0-1"]
[Round "01"]
[TimeControl "180+2"]
[Date "2023.02.28"]
[WhiteClock "0:00:53"]
[BlackClock "0:00:41"]

1. d4 {[%clk 0:03:00]}  d6 {[%clk 0:02:58]} 2. c4 {[%clk 0:03:00]}  g6 {[%clk 0:02:59]} 3. Nc3 {[%clk 0:02:59]}  Bg7 {[%clk 0:02:59]} 4. e4 {[%clk 0:03:00]}  c5 {[%clk 0:02:54]} 5. d5 {[%clk 0:02:58]}  Bxc3+ {[%clk 0:02:54]} 6. bxc3 {[%clk 0:02:58]}  e5 {[%clk 0:02:55]} 7. f4 {[%clk 0:02:54]}  exf4 {[%clk 0:02:25]} 8. Bxf4 {[%clk 0:02:52]}  Qe7 {[%clk 0:02:25]} 9. Bd3 {[%clk 0:02:49]}  Nf6 {[%clk 0:02:16]} 10. Nf3 {[%clk 0:02:48]}  Nh5 {[%clk 0:02:16]} 11. Bg5 {[%clk 0:02:44]}  f6 {[%clk 0:02:15]} 12. Bh6 {[%clk 0:02:42]}  Nd7 {[%clk 0:02:12]} 13. O-O {[%clk 0:02:42]}  b6 {[%clk 0:02:13]} 14. g4 {[%clk 0:02:14]}  Ng7 {[%clk 0:02:13]} 15. g5 {[%clk 0:02:14]}  O-O {[%clk 0:02:13]} 16. gxf6 {[%clk 0:02:12]}  Nxf6 {[%clk 0:02:14]} 17. Bg5 {[%clk 0:02:07]}  Bg4 {[%clk 0:02:13]} 18. Qc2 {[%clk 0:02:00]}  Rae8 {[%clk 0:01:47]} 19. Rae1 {[%clk 0:01:56]}  Qc7 {[%clk 0:01:44]} 20. e5 {[%clk 0:01:38]}  dxe5 {[%clk 0:01:38]} 21. Nd2 {[%clk 0:01:38]}  Ngh5 {[%clk 0:01:19]} 22. Bh6 {[%clk 0:01:26]}  Rf7 {[%clk 0:01:09]} 23. Qa4 {[%clk 0:01:23]}  Bd7 {[%clk 0:01:05]} 24. Qc2 {[%clk 0:01:21]}  Nf4 {[%clk 0:01:05]} 25. Bxf4 {[%clk 0:01:14]}  exf4 {[%clk 0:01:06]} 26. Bxg6 {[%clk 0:01:13]}  hxg6 {[%clk 0:01:03]} 27. Nf3 {[%clk 0:01:11]}  Bf5 {[%clk 0:01:01]} 28. Qg2 {[%clk 0:01:10]}  Rxe1 {[%clk 0:00:58]} 29. Rxe1 {[%clk 0:01:07]}  Re7 {[%clk 0:00:56]} 30. Rf1 {[%clk 0:01:07]}  Kg7 {[%clk 0:00:44]} 31. Nh4 {[%clk 0:01:06]}  Qe5 {[%clk 0:00:44]} 32. h3 {[%clk 0:00:53]}  Be4 {[%clk 0:00:41]} 0-1


[Site "https://www.chess.com"]

[Event "Titled Tuesday Blitz February 28 Early 2023"]
[White "Balla, Tamas-Kristof"]
[Black "Makarian, Rudik"]
[WhiteFideId "1208497"]
[BlackFideId "44105681"]
[WhiteElo "2334"]
[BlackElo "2419"]
[Result "0-1"]
[Round "01"]
[TimeControl "180+2"]
[Date "2023.02.28"]
[WhiteClock "0:00:07"]
[BlackClock "0:00:07"]

1. e4 {[%clk 0:02:59]}  c5 {[%clk 0:02:11]} 2. c3 {[%clk 0:02:58]}  d5 {[%clk 0:02:09]} 3. exd5 {[%clk 0:02:58]}  Nf6 {[%clk 0:02:09]} 4. d4 {[%clk 0:02:37]}  Nxd5 {[%clk 0:02:08]} 5. Nf3 {[%clk 0:02:37]}  e6 {[%clk 0:02:07]} 6. Bd3 {[%clk 0:02:25]}  Be7 {[%clk 0:02:06]} 7. O-O {[%clk 0:02:25]}  O-O {[%clk 0:02:07]} 8. dxc5 {[%clk 0:02:17]}  Nd7 {[%clk 0:01:45]} 9. c4 {[%clk 0:01:34]}  N5f6 {[%clk 0:01:44]} 10. Nc3 {[%clk 0:01:23]}  Nxc5 {[%clk 0:01:42]} 11. Bc2 {[%clk 0:01:22]}  b6 {[%clk 0:01:42]} 12. Bg5 {[%clk 0:01:22]}  Bb7 {[%clk 0:01:42]} 13. Qe2 {[%clk 0:01:20]}  h6 {[%clk 0:01:37]} 14. Bh4 {[%clk 0:01:19]}  Nh5 {[%clk 0:01:18]} 15. Bg3 {[%clk 0:01:11]}  Nxg3 {[%clk 0:01:17]} 16. hxg3 {[%clk 0:01:12]}  Bf6 {[%clk 0:01:16]} 17. Rad1 {[%clk 0:01:04]}  Qe7 {[%clk 0:01:17]} 18. Qe3 {[%clk 0:00:57]}  a5 {[%clk 0:01:09]} 19. b3 {[%clk 0:00:57]}  Rad8 {[%clk 0:01:07]} 20. Ne4 {[%clk 0:00:52]}  Bxe4 {[%clk 0:00:57]} 21. Bxe4 {[%clk 0:00:53]}  g6 {[%clk 0:00:56]} 22. Bb1 {[%clk 0:00:49]}  Kg7 {[%clk 0:00:55]} 23. Ne5 {[%clk 0:00:46]}  Qc7 {[%clk 0:00:51]} 24. Ng4 {[%clk 0:00:46]}  Rh8 {[%clk 0:00:30]} 25. Rxd8 {[%clk 0:00:30]}  Qxd8 {[%clk 0:00:31]} 26. Nxf6 {[%clk 0:00:26]}  Qxf6 {[%clk 0:00:32]} 27. Rd1 {[%clk 0:00:27]}  h5 {[%clk 0:00:32]} 28. Qd4 {[%clk 0:00:26]}  Rb8 {[%clk 0:00:18]} 29. Qd6 {[%clk 0:00:20]}  Rb7 {[%clk 0:00:15]} 30. Qc6 {[%clk 0:00:20]}  h4 {[%clk 0:00:10]} 31. gxh4 {[%clk 0:00:20]}  Qxh4 {[%clk 0:00:11]} 32. Qf3 {[%clk 0:00:20]}  Rb8 {[%clk 0:00:11]} 33. Qc3+ {[%clk 0:00:19]}  Qf6 {[%clk 0:00:11]} 34. Qxf6+ {[%clk 0:00:19]}  Kxf6 {[%clk 0:00:12]} 35. Rd6 {[%clk 0:00:19]}  Ke5 {[%clk 0:00:11]} 36. Rd2 {[%clk 0:00:19]}  g5 {[%clk 0:00:12]} 37. Re2+ {[%clk 0:00:19]}  Kf6 {[%clk 0:00:12]} 38. Rd2 {[%clk 0:00:20]}  Ke5 {[%clk 0:00:12]} 39. g3 {[%clk 0:00:19]}  f5 {[%clk 0:00:11]} 40. Kg2 {[%clk 0:00:20]}  g4 {[%clk 0:00:11]} 41. Bc2 {[%clk 0:00:20]}  Rh8 {[%clk 0:00:09]} 42. a3 {[%clk 0:00:20]}  Na6 {[%clk 0:00:08]} 43. Bd1 {[%clk 0:00:18]}  Rb8 {[%clk 0:00:05]} 44. Be2 {[%clk 0:00:18]}  Rc8 {[%clk 0:00:04]} 45. f3 {[%clk 0:00:18]}  gxf3+ {[%clk 0:00:04]} 46. Bxf3 {[%clk 0:00:19]}  Nc5 {[%clk 0:00:05]} 47. b4 {[%clk 0:00:18]}  axb4 {[%clk 0:00:05]} 48. axb4 {[%clk 0:00:19]}  Nb3 {[%clk 0:00:06]} 49. Rc2 {[%clk 0:00:18]}  Nd4 {[%clk 0:00:05]} 50. Rc1 {[%clk 0:00:19]}  Rc7 {[%clk 0:00:04]} 51. c5 {[%clk 0:00:19]}  bxc5 {[%clk 0:00:05]} 52. bxc5 {[%clk 0:00:20]}  Nb3 {[%clk 0:00:04]} 53. Re1+ {[%clk 0:00:19]}  Kf6 {[%clk 0:00:05]} 54. c6 {[%clk 0:00:20]}  Nd4 {[%clk 0:00:05]} 55. Rc1 {[%clk 0:00:19]}  e5 {[%clk 0:00:06]} 56. Bd5 {[%clk 0:00:19]}  Ke7 {[%clk 0:00:07]} 57. Kf2 {[%clk 0:00:15]}  Kd6 {[%clk 0:00:07]} 58. Bg2 {[%clk 0:00:14]}  Nxc6 {[%clk 0:00:06]} 59. Rd1+ {[%clk 0:00:13]}  Nd4 {[%clk 0:00:07]} 60. Ke3 {[%clk 0:00:13]}  Rc3+ {[%clk 0:00:06]} 61. Kf2 {[%clk 0:00:12]}  Rc2+ {[%clk 0:00:06]} 62. Kg1 {[%clk 0:00:13]}  Ke6 {[%clk 0:00:06]} 63. Re1 {[%clk 0:00:13]}  Kf6 {[%clk 0:00:06]} 64. Ra1 {[%clk 0:00:13]}  Kg5 {[%clk 0:00:06]} 65. Kh2 {[%clk 0:00:13]}  Nf3+ {[%clk 0:00:06]} 66. Kh1 {[%clk 0:00:13]}  Nd2 {[%clk 0:00:05]} 67. Ra4 {[%clk 0:00:13]}  Nc4 {[%clk 0:00:05]} 68. Bd5 {[%clk 0:00:12]}  Ne3 {[%clk 0:00:06]} 69. Bf3 {[%clk 0:00:10]}  Rc1+ {[%clk 0:00:05]} 70. Kh2 {[%clk 0:00:10]}  Rc2+ {[%clk 0:00:06]} 71. Kh3 {[%clk 0:00:10]}  Nf1 {[%clk 0:00:06]} 72. Bg2 {[%clk 0:00:09]}  Ne3 {[%clk 0:00:06]} 73. Ra3 {[%clk 0:00:09]}  Nxg2 {[%clk 0:00:06]} 74. Ra8 {[%clk 0:00:07]}  Ne3 {[%clk 0:00:06]} 75. Rg8+ {[%clk 0:00:08]}  Kf6 {[%clk 0:00:07]} 76. Rf8+ {[%clk 0:00:06]}  Kg7 {[%clk 0:00:07]} 77. Ra8 {[%clk 0:00:07]}  Ng4 {[%clk 0:00:07]} 0-1


[Site "https://www.chess.com"]

[Event "Titled Tuesday Blitz February 28 Early 2023"]
[White "Svane, Rasmus"]
[Black "Toncheva, Nadya"]
[WhiteFideId "4657101"]
[BlackFideId "2924056"]
[WhiteElo "2597"]
[BlackElo "2101"]
[Result "1-0"]
[Round "01"]
[TimeControl "180+2"]
[Date "2023.02.28"]
[WhiteClock "0:00:59"]
[BlackClock "0:00:07"]

1. Nf3 {[%clk 0:02:59]}  c5 {[%clk 0:03:00]} 2. c4 {[%clk 0:02:59]}  Nc6 {[%clk 0:03:00]} 3. Nc3 {[%clk 0:02:59]}  g6 {[%clk 0:02:59]} 4. e3 {[%clk 0:02:59]}  Nf6 {[%clk 0:02:59]} 5. d4 {[%clk 0:03:00]}  cxd4 {[%clk 0:02:59]} 6. exd4 {[%clk 0:03:00]}  d5 {[%clk 0:02:59]} 7. cxd5 {[%clk 0:03:01]}  Nxd5 {[%clk 0:02:59]} 8. Qb3 {[%clk 0:03:02]}  Nxc3 {[%clk 0:03:00]} 9. Bc4 {[%clk 0:03:02]}  Nd5 {[%clk 0:03:00]} 10. Bxd5 {[%clk 0:03:02]}  e6 {[%clk 0:03:01]} 11. Bxc6+ {[%clk 0:03:03]}  bxc6 {[%clk 0:03:02]} 12. O-O {[%clk 0:03:04]}  Qd5 {[%clk 0:03:02]} 13. Qe3 {[%clk 0:02:55]}  Bg7 {[%clk 0:02:58]} 14. Bd2 {[%clk 0:02:54]}  O-O {[%clk 0:02:54]} 15. Rfc1 {[%clk 0:02:48]}  Rd8 {[%clk 0:02:48]} 16. Rc5 {[%clk 0:02:39]}  Qd6 {[%clk 0:02:47]} 17. Bc3 {[%clk 0:02:37]}  Ba6 {[%clk 0:02:34]} 18. h4 {[%clk 0:02:34]}  h5 {[%clk 0:02:31]} 19. Re1 {[%clk 0:02:33]}  Rab8 {[%clk 0:02:30]} 20. Ne5 {[%clk 0:02:31]}  Rbc8 {[%clk 0:02:19]} 21. Ra5 {[%clk 0:02:29]}  Bxe5 {[%clk 0:01:55]} 22. dxe5 {[%clk 0:02:22]}  Qd3 {[%clk 0:01:55]} 23. Qxa7 {[%clk 0:01:48]}  Bc4 {[%clk 0:01:50]} 24. Qc5 {[%clk 0:01:41]}  Bd5 {[%clk 0:01:47]} 25. Ra7 {[%clk 0:01:40]}  Ra8 {[%clk 0:01:43]} 26. Rxa8 {[%clk 0:01:37]}  Rxa8 {[%clk 0:01:44]} 27. a3 {[%clk 0:01:37]}  Qf5 {[%clk 0:01:27]} 28. f3 {[%clk 0:01:13]}  Qf4 {[%clk 0:01:22]} 29. Qf2 {[%clk 0:01:13]}  Ra4 {[%clk 0:01:10]} 30. Bb4 {[%clk 0:01:13]}  Ra8 {[%clk 0:00:58]} 31. Bd2 {[%clk 0:01:08]}  Qf5 {[%clk 0:00:55]} 32. Qg3 {[%clk 0:01:08]}  Rb8 {[%clk 0:00:54]} 33. Bc3 {[%clk 0:01:08]}  Ra8 {[%clk 0:00:44]} 34. Kh2 {[%clk 0:01:07]}  Ra4 {[%clk 0:00:42]} 35. Rd1 {[%clk 0:01:08]}  Qc2 {[%clk 0:00:38]} 36. Rd2 {[%clk 0:01:04]}  Qf5 {[%clk 0:00:38]} 37. Rd4 {[%clk 0:01:03]}  Ra8 {[%clk 0:00:35]} 38. Rf4 {[%clk 0:01:03]}  Qd3 {[%clk 0:00:34]} 39. Qg5 {[%clk 0:01:00]}  Qc2 {[%clk 0:00:16]} 40. Qe7 {[%clk 0:00:59]}  Rf8 {[%clk 0:00:12]} 41. Bb4 {[%clk 0:00:59]}  c5 {[%clk 0:00:08]} 42. Bxc5 {[%clk 0:00:59]}  Rc8 {[%clk 0:00:06]} 43. Qxf7+ {[%clk 0:00:59]}  Kh8 {[%clk 0:00:07]} 44. Be7 {[%clk 0:00:59]} 1-0


[Site "https://www.chess.com"]

[Event "Titled Tuesday Blitz February 28 Early 2023"]
[White "Sokac, Marko"]
[Black "Babazada, Khazar"]
[WhiteFideId "14531356"]
[BlackFideId "13413554"]
[WhiteElo "2355"]
[BlackElo "2359"]
[Result "0-1"]
[Round "01"]
[TimeControl "180+2"]
[Date "2023.02.28"]
[WhiteClock "0:00:06"]
[BlackClock "0:00:25"]

1. e4 {[%clk 0:03:00]}  Nf6 {[%clk 0:02:59]} 2. Nc3 {[%clk 0:03:00]}  d5 {[%clk 0:02:59]} 3. e5 {[%clk 0:02:59]}  Nfd7 {[%clk 0:02:59]} 4. d4 {[%clk 0:02:59]}  e6 {[%clk 0:02:59]} 5. f4 {[%clk 0:02:59]}  c5 {[%clk 0:03:00]} 6. Nf3 {[%clk 0:03:00]}  Nc6 {[%clk 0:03:01]} 7. dxc5 {[%clk 0:03:01]}  a6 {[%clk 0:03:01]} 8. Bd3 {[%clk 0:03:01]}  Bxc5 {[%clk 0:02:56]} 9. a3 {[%clk 0:03:01]}  b5 {[%clk 0:02:56]} 10. Bd2 {[%clk 0:03:01]}  Bb7 {[%clk 0:02:55]} 11. Qe2 {[%clk 0:03:01]}  Nd4 {[%clk 0:02:48]} 12. Nxd4 {[%clk 0:03:01]}  Bxd4 {[%clk 0:02:49]} 13. Nd1 {[%clk 0:03:01]}  Bb6 {[%clk 0:02:41]} 14. c3 {[%clk 0:02:56]}  Qc7 {[%clk 0:02:37]} 15. Ne3 {[%clk 0:02:51]}  Nc5 {[%clk 0:02:35]} 16. Bc2 {[%clk 0:02:47]}  Ne4 {[%clk 0:02:27]} 17. Bxe4 {[%clk 0:02:27]}  dxe4 {[%clk 0:02:28]} 18. O-O {[%clk 0:02:28]}  Rd8 {[%clk 0:02:25]} 19. Rad1 {[%clk 0:02:24]}  O-O {[%clk 0:02:21]} 20. Kh1 {[%clk 0:02:21]}  Rd3 {[%clk 0:02:17]} 21. Nc2 {[%clk 0:02:09]}  Rfd8 {[%clk 0:02:14]} 22. Nb4 {[%clk 0:01:53]}  R3d7 {[%clk 0:02:10]} 23. Bc1 {[%clk 0:01:38]}  a5 {[%clk 0:02:04]} 24. Nc2 {[%clk 0:01:36]}  Rd3 {[%clk 0:01:48]} 25. Be3 {[%clk 0:01:31]}  Bxe3 {[%clk 0:01:31]} 26. Nxe3 {[%clk 0:01:32]}  Qd7 {[%clk 0:01:25]} 27. Qg4 {[%clk 0:00:50]}  Qe7 {[%clk 0:01:14]} 28. f5 {[%clk 0:00:42]}  Rxd1 {[%clk 0:00:58]} 29. Rxd1 {[%clk 0:00:36]}  Rxd1+ {[%clk 0:00:50]} 30. Qxd1 {[%clk 0:00:37]}  h6 {[%clk 0:00:35]} 31. Qd6 {[%clk 0:00:18]}  Qg5 {[%clk 0:00:31]} 32. Qb8+ {[%clk 0:00:17]}  Kh7 {[%clk 0:00:31]} 33. Qxb7 {[%clk 0:00:15]}  Qxe3 {[%clk 0:00:31]} 34. h3 {[%clk 0:00:11]}  Qc1+ {[%clk 0:00:31]} 35. Kh2 {[%clk 0:00:11]}  Qf4+ {[%clk 0:00:32]} 36. Kh1 {[%clk 0:00:11]}  e3 {[%clk 0:00:33]} 37. Qxb5 {[%clk 0:00:09]}  Qxf5 {[%clk 0:00:24]} 38. g4 {[%clk 0:00:07]}  Qf3+ {[%clk 0:00:23]} 39. Kh2 {[%clk 0:00:06]}  Qf2+ {[%clk 0:00:24]} 40. Kh1 {[%clk 0:00:06]}  e2 {[%clk 0:00:25]} 41. Qd3+ {[%clk 0:00:06]}  g6 {[%clk 0:00:25]} 0-1


[Site "https://www.chess.com"]

[Event "Titled Tuesday Blitz February 28 Early 2023"]
[White "Matlakov, Maxim"]
[Black "Real_taiatai"]
[WhiteFideId "4168003"]
[WhiteElo "2666"]
[BlackElo "2503"]
[Result "1-0"]
[Round "01"]
[TimeControl "180+2"]
[Date "2023.02.28"]
[WhiteClock "0:00:30"]
[BlackClock "0:00:14"]

1. d4 {[%clk 0:02:56]}  Nf6 {[%clk 0:02:59]} 2. c4 {[%clk 0:02:51]}  g6 {[%clk 0:03:00]} 3. Nc3 {[%clk 0:02:47]}  Bg7 {[%clk 0:03:00]} 4. g3 {[%clk 0:02:43]}  O-O {[%clk 0:03:00]} 5. Bg2 {[%clk 0:02:41]}  d6 {[%clk 0:02:54]} 6. Nf3 {[%clk 0:02:41]}  Nc6 {[%clk 0:02:51]} 7. O-O {[%clk 0:02:41]}  Bd7 {[%clk 0:02:44]} 8. e4 {[%clk 0:02:36]}  e5 {[%clk 0:02:43]} 9. d5 {[%clk 0:02:35]}  Ne7 {[%clk 0:02:40]} 10. h3 {[%clk 0:02:31]}  h6 {[%clk 0:02:39]} 11. c5 {[%clk 0:02:27]}  b6 {[%clk 0:02:30]} 12. c6 {[%clk 0:02:25]}  Bc8 {[%clk 0:02:30]} 13. Re1 {[%clk 0:02:21]}  Nh7 {[%clk 0:02:30]} 14. Bd2 {[%clk 0:02:08]}  f5 {[%clk 0:02:28]} 15. exf5 {[%clk 0:02:09]}  gxf5 {[%clk 0:02:04]} 16. Nh4 {[%clk 0:02:09]}  f4 {[%clk 0:02:01]} 17. gxf4 {[%clk 0:01:53]}  Nf5 {[%clk 0:01:53]} 18. Nf3 {[%clk 0:01:30]}  exf4 {[%clk 0:01:50]} 19. Bxf4 {[%clk 0:01:29]}  Nh4 {[%clk 0:01:45]} 20. Nxh4 {[%clk 0:01:29]}  Rxf4 {[%clk 0:01:45]} 21. Ng6 {[%clk 0:01:28]}  Rf7 {[%clk 0:01:41]} 22. Qe2 {[%clk 0:01:27]}  Bf5 {[%clk 0:01:16]} 23. Ne7+ {[%clk 0:01:26]}  Kh8 {[%clk 0:01:16]} 24. Nxf5 {[%clk 0:01:15]}  Rxf5 {[%clk 0:01:17]} 25. Qe7 {[%clk 0:01:11]}  Re5 {[%clk 0:01:05]} 26. Rxe5 {[%clk 0:01:09]}  Bxe5 {[%clk 0:01:04]} 27. Qxd8+ {[%clk 0:01:07]}  Rxd8 {[%clk 0:01:05]} 28. Nb5 {[%clk 0:01:07]}  Rc8 {[%clk 0:00:52]} 29. Nxa7 {[%clk 0:01:07]}  Rg8 {[%clk 0:00:52]} 30. Nb5 {[%clk 0:01:05]}  Rg7 {[%clk 0:00:47]} 31. Rb1 {[%clk 0:01:05]}  Nf6 {[%clk 0:00:43]} 32. Kf1 {[%clk 0:01:03]}  Nh5 {[%clk 0:00:43]} 33. Be4 {[%clk 0:00:42]}  Nf4 {[%clk 0:00:40]} 34. Bf5 {[%clk 0:00:42]}  Nxd5 {[%clk 0:00:39]} 35. Bd7 {[%clk 0:00:35]}  Nb4 {[%clk 0:00:28]} 36. Nxc7 {[%clk 0:00:34]}  Nxc6 {[%clk 0:00:26]} 37. Bxc6 {[%clk 0:00:31]}  Rxc7 {[%clk 0:00:26]} 38. Be4 {[%clk 0:00:32]}  Rf7 {[%clk 0:00:22]} 39. Ke2 {[%clk 0:00:32]}  Bd4 {[%clk 0:00:22]} 40. f3 {[%clk 0:00:31]}  Rg7 {[%clk 0:00:20]} 41. Kd3 {[%clk 0:00:31]}  Be5 {[%clk 0:00:20]} 42. b4 {[%clk 0:00:31]}  Rg2 {[%clk 0:00:20]} 43. a4 {[%clk 0:00:31]}  Ra2 {[%clk 0:00:21]} 44. Bc6 {[%clk 0:00:30]}  Ra3+ {[%clk 0:00:20]} 45. Kc4 {[%clk 0:00:30]}  Kg7 {[%clk 0:00:16]} 46. Kb5 {[%clk 0:00:30]}  Bd4 {[%clk 0:00:16]} 47. Rd1 {[%clk 0:00:30]}  Bc3 {[%clk 0:00:15]} 48. Rxd6 {[%clk 0:00:29]}  Rb3 {[%clk 0:00:15]} 49. Kc4 {[%clk 0:00:29]}  Bxb4 {[%clk 0:00:15]} 50. Rd7+ {[%clk 0:00:29]}  Kf6 {[%clk 0:00:14]} 51. Kxb3 {[%clk 0:00:30]} 1-0


[Site "https://www.chess.com"]